Cogmind - Beta 9.6 @@@ ROGUE MODE // 2020.07.08 @ 02:25:34 Player: Mr.Manatee Result: Smashed by cave-in Performance ------------- Evolutions (0) 0 Regions Visited (3) 600 Robots Destroyed (17) 85 Value Destroyed (347) 347 Prototype IDs (4) 80 Alien Tech Used (0) 0 Bonus (0) 0 TOTAL SCORE: 1112 Bonus ------- None Cogmind --------- Core Integrity 0/250 Matter 289/300 Energy 100/100 System Corruption 12% Temperature Cool (35) Movement Treading (165) Ox1 Location -10/Exiles Parts ------- > --- POWER (1) -------- (None) > --- PROPULSION (2) --- Advanced Treads > --- UTILITY (2) ------ High-capacity Storage Unit > --- WEAPON (2) ------- Assault Rifle > --- INVENTORY (12) --- Light Nuclear Core Reinforced Deuterium Engine Fission Core Fission Core Light Treads Aluminum Leg Titanium Leg Small Storage Unit Large Matter Pod (150) EM Pulse Gun Peak State ------------ > --- POWER ------------ Ion Engine > --- PROPULSION ------- Light Treads Advanced Treads > --- UTILITY ---------- Improved Heat Sink High-capacity Storage Unit > --- WEAPON ----------- Shock Rifle Katana > --- INVENTORY -------- Light Nuclear Core Fission Core Light Treads Aluminum Leg Titanium Leg Small Storage Unit Large Matter Pod EM Pulse Gun Backup Laser I Electrolaser Assault Rifle [Rating: 17] Favorites ----------- Power Ion Engine Engine Ion Engine Power Core Light Nuclear Core Propulsion Light Treads Treads Light Treads Leg Aluminum Leg Utility High-capacity Storage Unit Device Improved Heat Sink Storage High-capacity Storage Unit Weapon Assault Rifle Energy Gun Shock Rifle Ballistic Gun Assault Rifle Special Weapon Mining Laser Slashing Weapon Katana Build | -11 -10 -10 -10 ------- Run | Scr Mat Min Exi Slots Evolved . | . . . . Power . | . . . . Propulsion . | . . . . Utility . | . . . . Weapon . | . . . . Parts Attached 23 | 6 8 7 2 Power 3 | 1 1 1 . Engine 2 | 1 . 1 . Core 1 | . 1 . . Reactor . | . . . . Propulsion 5 | 2 2 1 . Treads 3 | . 2 1 . Leg 2 | 2 . . . Wheel . | . . . . Hover . | . . . . Flight . | . . . . Utility 4 | 1 2 1 . Device 1 | . . 1 . Storage 3 | 1 2 . . Processor . | . . . . Hackware . | . . . . Protection . | . . . . Artifact . | . . . . Weapon 11 | 2 3 4 2 Energy Gun 3 | . . 2 1 Energy Cannon . | . . . . Ballistic Gun 6 | 2 2 1 1 Ballistic Cannon . | . . . . Launcher . | . . . . Special Weapon 1 | . 1 . . Impact Weapon . | . . . . Slashing Weapon 1 | . . 1 . Piercing Weapon . | . . . . Special Melee Weapon . | . . . . Unidentified Prototypes . | . . . . Parts Lost 9 | . 3 . 6 Power 1 | . . . 1 Propulsion 1 | . . . 1 Utility 1 | . . . 1 Weapon 6 | . 3 . 3 Highest Loss Streak 6 | . 1 . 6 Average Slot Usage (%) 92 | . 90 90 100 Engine 9 | . 7 10 14 Core 4 | . 6 3 . Treads 18 | . 10 28 28 Leg 9 | . 17 . . Device 3 | . . 5 14 Storage 17 | . 20 14 14 Energy Gun 7 | . 2 14 14 Ballistic Gun 13 | . 22 3 . Slashing Weapon 5 | . . 10 14 Naked Turns . | . . . . Heaviest Build 56 | 12 56 43 43 Greatest Support 42 | 20 40 42 42 Greatest Overweight (x) 1 | . 1 1 1 Average Overweight (x) . | . . . 1 Largest Inventory Capacity 18 | 6 18 12 12 Average Capacity 11 | 5 11 12 12 Most Carried 12 | 6 6 10 12 Average Carried 6 | 3 4 8 11 Final Capacity 12 | 6 12 12 12 Final Carried 10 | 5 5 10 10 Class Distribution -------------------- 100% | Mutant Dominant Class ---------------- Mutant | -10/Materials Mutant | -10/Mines Mutant | -10/Exiles Resources | -11 -10 -10 -10 ----------- Run | Scr Mat Min Exi Matter Collected 601 | 161 226 214 . Remotely . | . . . . Salvage Created 390 | 58 284 48 . Parts 32 | 7 21 4 . Haulers Intercepted 1 | . 1 . . Recyclers Shooed . | . . . . Parts Field Recycled . | . . . . Retrieved Matter . | . . . . Parts Self-Destructed . | . . . . Prevented . | . . . . Kills | -11 -10 -10 -10 ------- Run | Scr Mat Min Exi Combat Hostiles Destroyed 13 | . 12 1 . Guns 10 | . 9 1 . Cannons 3 | . 3 . . Classes Destroyed 4 | 1 3 . . Tunneler 3 | 3 . . . Hauler 1 | . 1 . . Swarmer 6 | . 6 . . Grunt 7 | . 6 1 . Best Kill Streak 4 | 3 4 1 . Combat Bots Only 4 | . 4 1 . Max Kills in Single Turn 1 | 1 1 1 . Gunslinging . | . . . . Exploded . | . . . . Melee . | . . . . Uniques/NPCs Destroyed . | . . . . Combat | -11 -10 -10 -10 -------- Run | Scr Mat Min Exi Damage Taken 1413 | . 595 121 697 Core 289 | . 116 11 162 Absorbed by Shields . | . . . . Core Remaining (%) 100 | 100 . . . Volleys Fired 48 | 6 37 3 2 Largest 2 | 2 2 1 2 Hottest 100 | 40 100 50 83 Shots Fired 79 | 12 60 3 4 Gun 67 | 12 48 3 4 Cannon . | . . . . Launcher . | . . . . Special 12 | . 12 . . Kinetic 61 | 12 47 . 2 Thermal 15 | . 13 . 2 Explosive . | . . . . Electromagnetic 3 | . . 3 . Robot Hit Streak 11 | 4 11 1 . Robot Miss Streak 4 | 3 4 1 . Penetration Max . | . . . . Secondary Targets 2 | . 2 . . Max Gunslinging Chain 1 | . 1 . . Shots Hit Robots 49 | 6 41 2 . Core Hits 24 | 3 19 2 . Critical Hits . | . . . . Critical Kills . | . . . . Critical Parts Destroyed . | . . . . Melee Attacks 15 | . . . 15 Impact . | . . . . Slashing 15 | . . . 15 Piercing . | . . . . Sneak Attacks . | . . . . Combat Hostiles . | . . . . Follow-up Attacks . | . . . . Damage Inflicted 710 | 100 552 58 . Guns 508 | 100 350 58 . Cannons . | . . . . Explosions . | . . . . Melee . | . . . . Ramming . | . . . . Kinetic 450 | 100 350 . . Thermal 202 | . 202 . . Explosive . | . . . . Electromagnetic 58 | . . 58 . Impact . | . . . . Slashing . | . . . . Piercing . | . . . . Highest Corruption 6 | . . . 6 Average Corruption 6 | . . . 6 Corruption Purged . | . . . . Overload Shots . | . . . . Overflow Damage . | . . . . Projectiles . | . . . . Explosions . | . . . . Melee . | . . . . Knockbacks . | . . . . Impact . | . . . . Kinetic . | . . . . Secondary . | . . . . Self-Inflicted Damage . | . . . . Shots . | . . . . Rammed . | . . . . Targets Rammed . | . . . . Kicked . | . . . . Crushed . | . . . . Highest Temperature 211 | . 211 42 35 Average Temperature 50 | . 54 24 21 Received Heat Transfer 225 | . 198 27 . Siege Activations . | . . . . Robots Corrupted . | . . . . Combat Hostiles . | . . . . Parts Fried . | . . . . Impact Corruptions . | . . . . Robots Melted . | . . . . Combat Hostiles . | . . . . Parts Melted . | . . . . Heat Transferred 400 | . 400 . . Parts Sabotaged . | . . . . Parts Stolen . | . . . . Parts Stripped . | . . . . Power Chain Reactions . | . . . . Missiles Intercepted . | . . . . Alert | -11 -10 -10 -10 ------- Run | Scr Mat Min Exi Peak Influence 224 | 15 224 69 . Average Influence 88 | 4 123 36 . Maximum Alert Level 1 | . 1 . . Low Security (%) 95 | 100 91 100 . Level 1 5 | . 8 . . Level 2 . | . . . . Level 3 . | . . . . Level 4 . | . . . . Level 5 . | . . . . High Security . | . . . . Max Security . | . . . . Squads Dispatched 3 | . 3 . . Investigation 1 | . 1 . . Extermination . | . . . . Reinforcement 2 | . 2 . . Assault . | . . . . Garrison . | . . . . Intercept . | . . . . Construction Impeded . | . . . . Haulers Reinforced . | . . . . Stealth | -11 -10 -10 -10 --------- Run | Scr Mat Min Exi Distress Signals 1 | . 1 . . Communications Jammed . | . . . . Distress Signals . | . . . . Times Spotted 31 | . 28 3 . Peak Tracking Total 7 | . 7 3 . Tactical Retreats . | . . . . Traps | -11 -10 -10 -10 ------- Run | Scr Mat Min Exi Traps Triggered 2 | . . 2 . Indirectly . | . . . . Trap Hack Attempts . | . . . . Triggered . | . . . . Disarmed . | . . . . Reprogrammed . | . . . . Reused . | . . . . Traps Extracted . | . . . . Installed . | . . . . Triggered 2 | . . 2 . Machines | -11 -10 -10 -10 ---------- Run | Scr Mat Min Exi Machines Disabled . | . . . . Max in Single Turn . | . . . . Machines Sabotaged . | . . . . Garrisons Compromised . | . . . . Overloaded Fab Kills . | . . . . Fab Network Shutdowns . | . . . . Hacking | -11 -10 -10 -10 --------- Run | Scr Mat Min Exi Machines Accessed 9 | . 7 1 1 Terminals 6 | . 6 . . Fabricators . | . . . . Repair Stations 1 | . 1 . . Recycling Units . | . . . . Scanalyzers . | . . . . Garrison Access . | . . . . Total Hacks 28 | . 23 1 4 Successful 18 | . 13 1 4 Failed 10 | . 10 . . Catastrophic 1 | . 1 . . Database Lockouts . | . . . . Manual 19 | . 18 . 1 Terminals 18 | . 18 . . Fabricators . | . . . . Repair Stations 5 | . 5 . . Recycling Units . | . . . . Scanalyzers . | . . . . Garrison Access . | . . . . Terminal Hacks 12 | . 7 1 4 Record 4 | . . . 4 Robot Analysis 1 | . 1 . . Prototype ID Bank 4 | . 4 . . Open Door 1 | . . 1 . Branch Access Points 1 | . 1 . . Terminal Index 1 | . 1 . . Fabricator Hacks . | . . . . Repair Station Hacks 3 | . 3 . . Scan Component 1 | . 1 . . Repair 1 | . 1 . . Refit 1 | . 1 . . Recycling Unit Hacks . | . . . . Scanalyzer . | . . . . Garrison Access Hacks . | . . . . Unauthorized Hacks 3 | . 3 . . Terminals 3 | . 3 . . Botnet 2 | . 2 . . Disrupt 1 | . 1 . . Fabricators . | . . . . Repair Stations . | . . . . Recycling Units . | . . . . Scanalyzers . | . . . . Garrison Access . | . . . . Data Cores Recovered . | . . . . Used . | . . . . Hacking Detections 7 | . 7 . . Full Trace Events 2 | . 2 . . Feedback Events . | . . . . Feedback Blocked . | . . . . Robot Schematics Acquired . | . . . . Robots Built . | . . . . Matter . | . . . . Time . | . . . . Total Robot Build Rating . | . . . . Part Schematics Acquired . | . . . . Parts Built . | . . . . Matter . | . . . . Time . | . . . . Total Part Build Rating . | . . . . Parts Repaired 1 | . 1 . . Time 26 | . 26 . . Parts Recycled . | . . . . Recycled Matter . | . . . . Retrieved Matter . | . . . . Retrieved Components . | . . . . Parts Scanalyzed . | . . . . Part Schematics Acquired . | . . . . Parts Damaged . | . . . . Bothacking | -11 -10 -10 -10 ------------ Run | Scr Mat Min Exi Used RIF Installer . | . . . . Robots Hacked . | . . . . Non-combat . | . . . . Combat . | . . . . Robot Hacks Applied . | . . . . Relay Couplers Released . | . . . . Robots Rewired . | . . . . Allies Hacked . | . . . . Hacks Repelled . | . . . . Allies | -11 -10 -10 -10 -------- Run | Scr Mat Min Exi Total Allies 1 | . . 1 . Largest Group 1 | . . 1 1 Highest-Rated Group 31 | . . 31 31 Highest-Rated Ally 31 | . . 31 31 Total Orders . | . . . . Ally Attacks . | . . . . Total Damage . | . . . . Kills . | . . . . Allies Corrupted . | . . . . Allies Melted . | . . . . Intel | -11 -10 -10 -10 ------- Run | Scr Mat Min Exi Robot Analysis Total 1 | . 1 . . Derelict Logs Recovered . | . . . . Drone Launches . | . . . . Drone Recoveries . | . . . . Exploration | -11 -10 -10 -10 ------------- Run | Scr Mat Min Exi Turns Passed 2077 | 97 1088 575 317 Spaces Moved 1163 | 56 620 334 153 Core 3 | 3 . . . Treads 719 | . 232 334 153 Legs 441 | 53 388 . . Wheels . | . . . . Hover . | . . . . Flight . | . . . . Fastest Speed 50 | 50 120 152 172 Average Speed 154 | 116 147 165 172 Slowest Speed 180 | 120 180 180 172 Overloaded Moves . | . . . . Propulsion Burnouts . | . . . . Robots Hopped . | . . . . Cave-ins Triggered 2 | . . . 2 Exploration Rate (%) 51 | 3 88 66 47 Regions Visited 3 Branch Regions 2 Pre-discovered Areas 2 | . . 1 1 Known Exits Taken 1 | . 1 . . Unknown Exits Taken 2 | 1 . 1 . Scrap Searched 1 | . . 1 . Spaces Dug 9 | . . . 9 Terrain Destroyed 11 | . 2 . 9 Melee 9 | . . . 9 Projectile 2 | . 2 . . AOE . | . . . . Actions | -11 -10 -10 -10 --------- Run | Scr Mat Min Exi Total 1323 | 75 714 352 182 Wait 53 | . 44 3 6 Move 1159 | 55 619 333 152 Hop . | . . . . Pick Up 17 | 8 2 4 3 Fast Attach 7 | 3 2 2 . Attach 8 | 3 1 2 2 Detach 1 | . . 1 . Swap 8 | . 5 3 . Drop 6 | . 4 1 1 Fire 48 | 6 37 3 2 Melee 15 | . . . 15 Ram . | . . . . Kick . | . . . . Crush . | . . . . Escape Stasis 1 | . . . 1 Rewire . | . . . . Trap . | . . . . Miscellaneous . | . . . . Route ------- -11/Scrapyard -10/Materials (discovered 5 exits: [*Mat x3] / *Min x2) -10/Mines (discovered 2 exits: [*Mat] / *Exi) -10/Exiles History --------- Turn | Location | Event 2 | -11/Scrapyard | Discovered new exit (range 16) 98 | -11/Scrapyard | Entered Materials 264 | -10/Materials | Discovered new exit (range 8) 316 | -10/Materials | Build established: Mutant 376 | -10/Materials | Discovered new exit (range 9) 397 | -10/Materials | Identified exit to Mines 661 | -10/Materials | Discovered new exit (range 14) 950 | -10/Materials | Discovered new exit (range 8) 1059 | -10/Materials | Repaired Assault Rifle 1186 | -10/Materials | Entered Mines 1293 | -10/Mines | Met a Derelict who couldn't figure out how to use a Trap Extractor 1512 | -10/Mines | Core integrity fell below 50% 1514 | -10/Mines | Escorted by a lone wolf Derelict 1534 | -10/Mines | Learned location of Storage (-7) 1677 | -10/Mines | Discovered new exit (range 11) 1753 | -10/Mines | Deemed a non-threat by the Exiles lab entrance 1754 | -10/Mines | Discovered new exit (range 5) 1761 | -10/Mines | Entered Exiles 1761 | -10/Exiles | Accompanied by 1 ally 1814 | -10/Exiles | Met 8R-AWN 1844 | -10/Exiles | Met EX-HEX 1888 | -10/Exiles | Met EX-BIN 1912 | -10/Exiles | Met EX-DEC 1921 | -10/Exiles | Learned location of Zion (-7) 2070 | -10/Exiles | Crushed by falling debris 2079 | -10/Exiles | Crushed by falling debris 2079 | -10/Exiles | Smashed by cave-in Last Messages --------------- only a matter of time before they find us. We might need to prioritize getting out of here and finding a better environment less hostile to science. 02070_ The unstable cave ceiling collapses. 02070_ Crushed by falling debris. 02070_ Katana destroyed. 02070_ System corrupted by crushing effect (+4). 02070_ Shock Rifle destroyed. 02070_ System corrupted by crushing effect (+1). 02070_ Imp. Heat Sink destroyed. 02070_ System corrupted by crushing effect (+1). 02079_ The unstable cave ceiling collapses. 02079_ Crushed by falling debris. 02079_ Electrolaser destroyed. 02079_ System corrupted by crushing effect (+2). 02079_ Ion Engine destroyed. 02079_ System corrupted by crushing effect (+1). 02079_ Lgt. Treads destroyed. 02079_ System corrupted by crushing effect (+3). [Achievement: Back For More] Map ----- +----------------------------------------------------+ | | | | | | | | | | | | | | | | | | | | | | | | | | | | | | | | | | | | | | | | | | | | | ????????????????????????# #??????????????????????? | | ????????????????????????# #??????????????????????? | | ????????????????????????# #??????????????????????? | | ????????????????????????#@#??????????????????????? | | ????????????????????????###??????????????????????? | | ????????????????######### #??????????????????????? | | ????????????????#X " #??????????????????????? | | ????????????????## ####??????????????????????? | | ?????????????????# #?????????????????????????? | | ?????????????????# #???###???????????????????? | | ?????????????????# #??"""""??????????????????? | | ?????????????????# ## """??????????????????? | | ?????????????????# X""??????????????????? | | ?????????????????# ## """??????????????????? | | ???????????####??# #??"""""??????????????????? | | ??????????""""""?# #???###???????????????????? | | ??????????"""" ## #?????????????????????????? | | ?????????#""X" #?????????????????????????? | | ?????????#" #?????????????????????????? | | ?????????#" ## #?????????????????????????? | | ?????????#""""""?# #?????????????????????????? | | ?????????##"###??# #?????????????????????????? | | ?????????????????# #????"?"??????????????????? | | ?????????????????# #??"""""??????????????????? | | ????????????????## ###"" """?????????????????? | | ????????????????#" """?????????????????? | | ????????????????#" ""?????????????????? | | ????????????????#" ""?????????????????? | +----------------------------------------------------+ Best States ------------- Heat Dissipation 39 Energy Generation 14 Energy Capacity 250 Matter Stores 300 Matter Capacity 300 Sight Range 16 Terrain Scan Density 10 Evasion (%) 40 Recoil Reduction 2 Item Schematics ----------------- None Robot Schematics ------------------ None Fabricated ------------ Nothing Alien Tech Used ----------------- None Achievements -------------- Back For More Challenges ------------ None Game ------ Seed NovaCoordinationBooster Manual? 0 Play Time 00:16:23 Cumulative 39.7 hours Start 2020.07.08 @ 02:08:16 End 2020.07.08 @ 02:25:34 Sessions 1 Manual Loads 0 Difficulty Rogue Special Mode None Game No. 50 Rogue 50 Adventurer 0 Explorer 0 Win Type - Total 0 Types 0/0/0/0/0/0/0 Lore% 32 Gallery% 41 Achievement% 37 Wizard Run 0 Options --------- ASCII 0 Keyboard 0 Movement Numpad Keybinds 0 Fullscreen 2 Font 16/Terminus Map View 76x50 Tactical HUD 1 Map Filters NONE Filters NONE Steam 1 RUN: 34d823a8-c687-4925-9499-91ac7d6f1c51